Cogmind - Beta 16 @@@ ROGUE MODE // 2026.01.26 @ 15:40:08 Player: applejuice Result: Destroyed by Y-45 Defender with Beam Rifle Performance ------------- Evolutions (0) 0 Regions Visited (2) 400 Robots Destroyed (17) 85 Value Destroyed (275) 275 Prototype IDs (0) 0 Alien Tech Used (0) 0 Bonus (0) 0 TOTAL SCORE: 760 Bonus ------- None Cogmind --------- Core Integrity 0/250 Matter 255/300 Energy 65/100 System Corruption 1% Temperature Cool (27) Movement Walking (190) Ox1 Location -10/Mines Parts ------- > --- POWER (1) -------- (None) > --- PROPULSION (2) --- Aluminum Leg > --- UTILITY (2) ------ Improved Heat Sink Medium Storage Unit > --- WEAPON (2) ------- Small Laser Grenade Launcher > --- INVENTORY (10) --- Signal Interpreter Peak State ------------ > --- POWER ------------ Light Ion Engine > --- PROPULSION ------- Aluminum Leg Aluminum Leg > --- UTILITY ---------- Small Storage Unit Seismic Detector > --- WEAPON ----------- Small Laser Small Laser > --- INVENTORY -------- Ion Engine Small Laser [Rating: 7] Favorites ----------- Power Ion Engine Engine Ion Engine Propulsion Aluminum Leg Leg Aluminum Leg Utility Seismic Detector Device Seismic Detector Storage Medium Storage Unit Weapon Small Laser Energy Gun Small Laser Launcher Grenade Launcher Build | -11 -10 -10 ------- Run | Yrd Mat Min Slots Evolved . | . . . Power . | . . . Propulsion . | . . . Utility . | . . . Weapon . | . . . Parts Attached 15 | 7 1 7 Power 2 | 1 . 1 Engine 2 | 1 . 1 Core . | . . . Reactor . | . . . Propulsion 5 | 2 . 3 Treads . | . . . Leg 5 | 2 . 3 Wheel . | . . . Hover . | . . . Flight . | . . . Utility 4 | 2 1 1 Device 2 | 1 . 1 Storage 2 | 1 1 . Processor . | . . . Hackware . | . . . Protection . | . . . Artifact . | . . . Weapon 4 | 2 . 2 Energy Gun 3 | 2 . 1 Energy Cannon . | . . . Ballistic Gun . | . . . Ballistic Cannon . | . . . Launcher 1 | . . 1 Special Weapon . | . . . Impact Weapon . | . . . Slashing Weapon . | . . . Piercing Weapon . | . . . Special Melee Weapon . | . . . Unidentified Prototypes . | . . . Parts Lost 9 | . 1 8 Power 2 | . 1 1 Propulsion 4 | . . 4 Utility 1 | . . 1 Weapon 2 | . . 2 Highest Loss Streak 8 | . 1 8 To Critical Strikes . | . . . Average Backups 4 | 2 4 6 Power . | 1 1 . Propulsion 1 | . 1 2 Utility . | . . 1 Weapon 1 | . 1 1 Tool/Special . | . . . Unused Backups 1 | . . 1 Power . | . . . Propulsion . | . . . Utility 1 | . . 1 Weapon . | . . . Tool/Special . | . . . Average Slot Usage (%) 92 | . 88 95 Engine 8 | . 4 13 Leg 27 | . 27 27 Device 13 | . 13 13 Storage 14 | . 14 14 Energy Gun 27 | . 28 26 Peak Build Rating 7 | 7 7 7 Average Rating 6 | 4 6 6 On Entrance 4 | . 7 6 Avg Prop Armor Cover (%) . | . . . Naked Turns . | . . . Heaviest Build 18 | 11 13 18 Greatest Support 20 | 20 20 20 Greatest Overweight (x) 3 | . 3 1 Average Overweight (x) . | . . . Largest Inventory Capacity 10 | 8 10 10 Average Capacity 9 | 7 9 10 Most Carried 7 | 3 6 7 Average Carried 5 | 2 4 6 Final Capacity 10 | 8 10 10 Final Carried 6 | 2 6 1 Class Distribution -------------------- 100% | Mutant Dominant Class ---------------- Mutant | -10/Materials Mutant | -10/Mines Resources | -11 -10 -10 ----------- Run | Yrd Mat Min Matter Collected 331 | 192 109 30 Remotely . | . . . Salvage Created 624 | 195 302 127 Parts 33 | 12 15 6 Haulers Intercepted 1 | . 1 . Recyclers Shooed . | . . . Parts Field Recycled . | . . . Retrieved Matter . | . . . Parts Self-Destructed . | . . . Prevented . | . . . Parts Restored . | . . . Kills | -11 -10 -10 ------- Run | Yrd Mat Min Combat Hostiles Destroyed 6 | . 3 3 Guns 6 | . 3 3 Classes Destroyed 7 | 2 3 2 Worker 1 | . . 1 Tunneler 5 | 5 . . Hauler 1 | . 1 . Recycler 2 | 1 1 . Watcher 2 | . 2 . Swarmer 1 | . . 1 Grunt 5 | . 3 2 Best Kill Streak 5 | 5 3 2 Combat Bots Only 2 | . 2 2 Max Kills in Single Turn 1 | 1 1 1 Gunslinging . | . . . Exploded . | . . . Melee . | . . . Uniques/NPCs Destroyed . | . . . Combat | -11 -10 -10 -------- Run | Yrd Mat Min Hostile Shots Fired 98 | . 21 77 Missed 23 | . 11 12 Hits 75 | . 10 65 Projectile 75 | . 10 65 Critical Strikes 4 | . . 4 Damage Taken 1003 | . 101 902 Core 254 | . 17 237 Absorbed by Shields . | . . . Core Remaining (%) 100 | 100 . . Volleys Fired 57 | 14 14 29 Largest 2 | 2 2 2 Hottest 80 | 80 80 80 Shots Fired 104 | 28 28 48 Gun 104 | 28 28 48 Cannon . | . . . Launcher . | . . . Special . | . . . Kinetic . | . . . Thermal 104 | 28 28 48 Explosive . | . . . Electromagnetic . | . . . Robot Hit Streak 9 | 9 4 6 Robot Miss Streak 3 | 2 3 3 Penetration Max . | . . . Secondary Targets . | . . . Shots Hit Robots 66 | 19 16 31 Core Hits 29 | 7 13 9 Critical Kills . | . . . Critical Parts Destroyed . | . . . Critical Strikes . | . . . Melee Attacks . | . . . Impact . | . . . Slashing . | . . . Piercing . | . . . Sneak Attacks . | . . . Combat Hostiles . | . . . Follow-up Attacks . | . . . Damage Inflicted 757 | 224 191 342 Guns 755 | 224 191 340 Cannons . | . . . Explosions . | . . . Melee . | . . . Ramming 2 | . . 2 Kinetic . | . . . Thermal 755 | 224 191 340 Explosive . | . . . Electromagnetic . | . . . Impact . | . . . Slashing . | . . . Piercing . | . . . Highest Corruption 1 | . 1 1 Average Corruption 1 | . 1 1 Corruption Purged . | . . . Corruption Blocked . | . . . Effects 5 | . 1 4 Message Errors 2 | . . 2 Matter Fused 1 | . 1 . Energy Discharges 1 | . . 1 Parts Fused 1 | . . 1 Overload Shots . | . . . Overflow Damage . | . . . Projectiles . | . . . Explosions . | . . . Melee . | . . . Knockbacks . | . . . Impact . | . . . Kinetic . | . . . Secondary . | . . . Self-Inflicted Damage . | . . . Shots . | . . . Rammed . | . . . Targets Rammed 2 | . 1 1 Kicked 2 | . 1 1 Crushed . | . . . Highest Temperature 321 | 24 70 321 Average Temperature 79 | 10 15 134 Received Heat Transfer 456 | . 36 420 Effects 1 | . . 1 Energy Bleed 1 | . . 1 Siege Activations . | . . . Martial Activations . | . . . Shielding Activations . | . . . Robots Disrupted . | . . . Combat Hostiles . | . . . Robots Corrupted . | . . . Combat Hostiles . | . . . Parts Fried . | . . . Impact Corruptions . | . . . Robots Melted . | . . . Combat Hostiles . | . . . Parts Melted 3 | 1 . 2 Heat Transferred 1700 | 500 425 775 Parts Sabotaged . | . . . Parts Stolen . | . . . Parts Stripped . | . . . Power Chain Reactions . | . . . Alert | -11 -10 -10 ------- Run | Yrd Mat Min Maximum Alert Level . | . . . Low Security (%) 100 | 100 100 100 Level 1 . | . . . Level 2 . | . . . Level 3 . | . . . Level 4 . | . . . Level 5 . | . . . High Security . | . . . Max Security . | . . . Peak Influence 55 | 15 30 55 Initial 6 | . 6 1 Average 9 | 3 8 11 Influence Increases 231 | 30 86 115 Destroy 0b10 Robot/C 120 | . 60 60 Destroy 0b10 Robot/NC 55 | 30 20 5 Destroy Leader 26 | . 6 20 Lose Combat Pursuer 30 | . . 30 Influence Decreases 231 | 20 92 119 Entered New Map 7 | . 4 3 Time Decay 179 | 20 78 81 Lost Part 45 | . 10 35 Squads Dispatched . | . . . Investigation . | . . . Extermination . | . . . Reinforcement . | . . . Assault . | . . . Garrison . | . . . Intercept . | . . . Searches Triggered . | . . . Construction Impeded . | . . . Haulers Reinforced . | . . . Active Scanning Responses . | . . . Cargo Convoy Interrupts . | . . . Stealth | -11 -10 -10 --------- Run | Yrd Mat Min Distress Signals 1 | . 1 . Communications Jammed . | . . . Distress Signals . | . . . Times Spotted 18 | . 11 7 Peak Tracking Total 3 | . 3 3 Tactical Retreats 1 | . . 1 Traps | -11 -10 -10 ------- Run | Yrd Mat Min Traps Triggered 3 | . 3 . Indirectly . | . . . Trap Hack Attempts . | . . . Triggered . | . . . Disarmed . | . . . Reprogrammed . | . . . Reused . | . . . Traps Extracted . | . . . Installed . | . . . Triggered . | . . . Machines | -11 -10 -10 ---------- Run | Yrd Mat Min Machines Disabled . | . . . Max in Single Turn . | . . . Machines Repaired . | . . . Machines Dismantled . | . . . Machines Sabotaged . | . . . Overloaded Fab Kills . | . . . Hacking | -11 -10 -10 --------- Run | Yrd Mat Min Machines Accessed 1 | . 1 . Terminals 1 | . 1 . Fabricators . | . . . Repair Stations . | . . . Recycling Units . | . . . Scanalyzers . | . . . Garrison Access . | . . . Total Hacks 3 | . 3 . Successful . | . . . Failed 3 | . 3 . Catastrophic . | . . . Database Lockouts . | . . . Manual 3 | . 3 . Terminals 3 | . 3 . Fabricators . | . . . Repair Stations . | . . . Recycling Units . | . . . Scanalyzers . | . . . Garrison Access . | . . . Terminal Hacks . | . . . Fabricator Hacks . | . . . Repair Station Hacks . | . . . Recycling Unit Hacks . | . . . Scanalyzer . | . . . Garrison Access Hacks . | . . . Unauthorized Hacks . | . . . Terminals . | . . . Fabricators . | . . . Repair Stations . | . . . Recycling Units . | . . . Scanalyzers . | . . . Garrison Access . | . . . Data Cores Recovered . | . . . Used . | . . . Hacking Detections 1 | . 1 . Full Trace Events 1 | . 1 . Feedback Events . | . . . Feedback Blocked . | . . . Robot Schematics Acquired . | . . . Robots Built . | . . . Authchips . | . . . Time . | . . . Total Robot Build Rating . | . . . Part Schematics Acquired . | . . . Parts Built . | . . . Authchips . | . . . Time . | . . . Total Part Build Rating . | . . . Part Studies Acquired . | . . . Parts Repaired . | . . . Time . | . . . Parts Recycled . | . . . Recycled Matter . | . . . Retrieved Matter . | . . . Retrieved Components . | . . . Parts Scanalyzed . | . . . Part Schematics Acquired . | . . . Parts Damaged . | . . . Bothacking | -11 -10 -10 ------------ Run | Yrd Mat Min Used RIF Installer . | . . . Robots Hacked . | . . . Non-combat . | . . . Combat . | . . . Robot Hacks Applied . | . . . Relay Couplers Released . | . . . Fabnet Peak Effective % . | . . . Robots Rewired . | . . . Allies Hacked . | . . . Hacks Repelled . | . . . Allies | -11 -10 -10 -------- Run | Yrd Mat Min Total Allies . | . . . Largest Group . | . . . Highest-Rated Group . | . . . Highest-Rated Ally . | . . . Total Orders . | . . . Ally Attacks . | . . . Total Damage . | . . . Kills . | . . . Allies Corrupted . | . . . Allies Melted . | . . . Intel | -11 -10 -10 ------- Run | Yrd Mat Min Active Infowar (turns) 629 | 7 309 313 Seismic 629 | 7 309 313 Robot Analysis Total . | . . . Derelict Logs Recovered 1 | . . 1 Drone Launches . | . . . Drone Recoveries . | . . . Exploration | -11 -10 -10 ------------- Run | Yrd Mat Min Turns Passed 754 | 95 320 339 Spaces Moved 415 | 35 192 188 Core 4 | 2 2 . Treads . | . . . Legs 411 | 33 190 188 Wheels . | . . . Hover . | . . . Flight . | . . . Fastest Speed 50 | 50 120 120 Average Speed 120 | 116 120 120 Slowest Speed 200 | 120 200 190 Overloaded Moves . | . . . Propulsion Burnouts . | . . . Robots Hopped . | . . . Potential Cave-ins . | . . . Cave-ins Triggered . | . . . Exploration Rate (%) 31 | 3 46 46 Regions Visited 2 Branch Regions 1 Pre-discovered Areas 1 | . . 1 Known Exits Taken . | . . . Unknown Exits Taken 2 | 1 1 . Scrap Searched 1 | . . 1 Spaces Dug . | . . . Terrain Destroyed . | . . . Melee . | . . . Projectile . | . . . AOE . | . . . Terrain Rammed . | . . . Walls Destroyed . | . . . Machines Disabled . | . . . Actions | -11 -10 -10 --------- Run | Yrd Mat Min Total 559 | 58 250 251 Wait 55 | . 31 24 Move 413 | 34 191 188 Hop . | . . . Pick Up 11 | 3 6 2 Fast Attach 9 | 6 3 . Attach 10 | 1 2 7 Detach . | . . . Swap 1 | . 1 . Drop 1 | . 1 . Fire 57 | 14 14 29 Melee . | . . . Ram . | . . . Kick 2 | . 1 1 Crush . | . . . Escape Stasis . | . . . Rewire . | . . . Trap . | . . . Miscellaneous . | . . . Route ------- -11/Scrapyard -10/Materials (discovered 2 exits: [*Mat] / [*Min]) -10/Mines History --------- Turn | Location | Event 26 | -11/Scrapyard | Discovered new exit (range 16) 96 | -11/Scrapyard | Entered Materials 288 | -10/Materials | Discovered new exit (range 15) 310 | -10/Materials | Build established: Mutant 397 | -10/Materials | Discovered new exit (range 14) 416 | -10/Materials | Entered Mines 441 | -10/Mines | Met a Derelict bent on vengeance 721 | -10/Mines | Core integrity fell below 50% 745 | -10/Mines | Core integrity fell below 20% 755 | -10/Mines | Destroyed by Y-45 Defender with Beam Rifle Last Messages --------------- 00673_ S-10 Pest destroyed. 00676_ K-01 Serf destroyed. 00703_ T-07 Excavator is excavating. 00723_ Sml. Laser destroyed. 00723_ Critical hit (Burn: +37). 00723_ Aluminum Leg destroyed. 00729_ Seismic Detector destroyed. 00729_ Sml. Laser destroyed. 00738_ Ion Engine destroyed. 00741_ Critical hit (Burn: +37). 00746_ Y-45 Defender heat short circuits Hvy. Assault Rifle. 00746_ Destroyed Heat Sink. 00747_ Y-45 Defender heat spikes uncontrollably. 00747_ Aluminum Leg destroyed. 00747_ Critical hit (Burn: +37). 00748_ Y-45 Defender heat spikes uncontrollably. 00750_ Aluminum Leg destroyed. 00752_ Y-45 Defender heat spikes uncontrollably. 00755_ Critical hit (Burn: +37). Map ----- +----------------------------------------------------+ | #?????# ##???????????????????????????????????? | | ## #?????# #????????????????????????????????????? | | ## ####### #????????????????????????????????????? | | ## #????????????????????????????????????? | | # ## ## #????????????????????????????????????? | | ##### ## ## #????????????????????????????????????? | | #???# ## #????????????????????????????????????? | | #???# ?# ####????????????????????????????????????? | | ????# ## #???????????????????????????????????????? | | ???## ##??????????????????????????????????????? | | ???# #??????????????????????????????????????? | | ???# #??????????????????????????????????????? | | ???# #??????????????????????????????????????? | | ???## ##??????????????????????????????????????? | | ????## #???????????????????????????????????????? | | ?????## #???????????????????????????????????????? | | ??????# #?????????###???????????????????????????? | | ??????# #????????## #???######?????????????????? | | ??????# #????????# ???#"!|"##??#####?????????? | | ??????# #????????# #??""!/""#?# ##????????? | | ??????# #?????????# #?? ## # #??????? | | ??????# #??????????# ?? Y## ?????? | | ??????# ########????# ###Y/## ?????? | | ??????# #????# #?????????? | | ??????######### #????# #???????????? | | ??????????????# #????## @ ##???????????? | | ??????????????# #?????# ##????????????? | | ??????????????# #####?## ##?????????????? | | ??????????????# ]%=#??## ###??????????????? | | ??????????????####! #?### ##????????????????? | | ?????????????????# ### #########?????????? | | ?????????????????# ## #???????? | | ?????????????????# =%= #???????? | | ?????????????????##### ##### #### ????????? | | ?????????????????????# ####????? #????????????? | | ?????????????????????# ##????????? ????????????? | | ?????????????????????# #???????????????????????? | | ?????????????????????# #???????????????????????? | | ????????????????????## #???????????????????????? | | ????????????????????# #???????????????????????? | | ??????????????????? #??????????????????????? | | ????????????????? #?????????????????????? | | ??????????????? #?????????????????????? | | ????????????? ## ##?????????????????????? | | ????????????### ###?#####??????????????????????? | | ??????????????####???????????????????????????????? | | ?????????????????????????????????????????????????? | | | | | | | +----------------------------------------------------+ Best States ------------- Heat Dissipation 39 Energy Generation 10 Energy Capacity 250 Matter Stores 300 Matter Capacity 300 Sight Range 16 Terrain Scan Density 10 Evasion (%) 55 Item Schematics ----------------- None Robot Schematics ------------------ None Fabricated ------------ Nothing Repaired ---------- Nothing Studied --------- None Alien Tech Used ----------------- None Achievements -------------- None Challenges ------------ None Game ------ Seed SegregatorMassMask Manual? 0 Play Time 00:06:43 Cumulative 31.0 hours Start 2026.01.26 @ 15:35:10 End 2026.01.26 @ 15:40:08 Sessions 1 Manual Loads 0 Difficulty Rogue Special Mode None Game No. 36 Rogue 36 Adventurer 0 Explorer 0 Win Type - Total 0 Types 0/0/0/0/0/0/0/0/0/0 Lore% 29 Gallery% 30 Achievement% 26 Wizard Run 0 Options --------- Layout 1 ASCII 0 Keyboard 1 Movement Numpad Keybinds 0 Fullscreen 1 Font 48/Smallcaps Map View 50x35 Zoom Use 0% Tactical HUD 1 Map Filters NONE Filters NONE Steam 1 RUN: 37f541a8-cb6f-44cf-afeb-5f9e8f4b4986